bitfinex/quotes_BTCUSD_20251021
["timestamp","ask_amount","ask_price","bid_price","bid_amount"]
[1761088593590,1.55237208,109330.0,109320.0,0.00039681]
[1761088595846,1.50430985,109330.0,109320.0,0.00039681]
[1761088597022,1.25910985,109330.0,109320.0,0.00039681]
[1761088598298,1.32314065,109330.0,109320.0,0.00039681]
[1761088598501,1.25910985,109330.0,109320.0,0.00039681]
[1761088598725,1.49261818,109330.0,109320.0,0.00039681]
[1761088599305,1.55664898,109330.0,109320.0,0.00039681]
[1761088599645,1.55664898,109330.0,109320.0,0.0003968]
[1761088599843,1.55664898,109330.0,109320.0,1e-08]
[1761088600949,0.18294914,109320.0,109310.0,0.00533326]
[1761088601167,1.37440352,109320.0,109310.0,0.00533326]
[1761088601623,1.38874917,109320.0,109310.0,0.00533326]
[1761088602274,1.38974917,109320.0,109310.0,0.00533326]
[1761088602459,1.39074917,109320.0,109310.0,0.00533326]
[1761088602711,1.42337862,109320.0,109310.0,0.00533326]
[1761088604462,1.39074917,109320.0,109310.0,0.00533326]
[1761088606684,1.39074917,109320.0,109310.0,0.0056809]
[1761088607760,1.42693145,109320.0,109310.0,0.0056809]
[1761088608018,1.45958775,109320.0,109310.0,0.0056809]
[1761088608217,1.12141483,109320.0,109310.0,0.0056809]
[1761088608470,0.74705963,109320.0,109310.0,0.0056809]
[1761088608690,1.08523255,109320.0,109310.0,0.0056809]
[1761088608884,1.03631246,109320.0,109310.0,0.0056809]
[1761088609988,0.38264535,109320.0,109310.0,0.0056809]
[1761088610204,0.06287525,109320.0,109310.0,0.54511627]
[1761088610405,0.03836944,109320.0,109310.0,0.18864677]
[1761088611022,0.03736944,109320.0,109310.0,0.18864677]
[1761088611232,0.5584915,109320.0,109310.0,0.0056809]
[1761088611439,0.69551238,109320.0,109310.0,0.0056809]
[1761088611648,1.01100657,109320.0,109310.0,0.0056809]
[1761088612055,1.00198884,109320.0,109310.0,0.0056809]
[1761088612261,1.37281806,109320.0,109310.0,0.0056809]
[1761088612466,1.01000657,109320.0,109310.0,0.0056809]
[1761088613310,1.02435152,109320.0,109310.0,0.0056809]
[1761088613715,1.04903914,109320.0,109310.0,0.0056809]
[1761088614125,0.59835115,109320.0,109310.0,0.0056809]
[1761088614331,0.93652407,109320.0,109310.0,0.0056809]
[1761088614529,0.59835115,109320.0,109310.0,0.0056809]
[1761088614757,0.93652407,109320.0,109310.0,0.0056809]
[1761088615096,1.27469699,109320.0,109310.0,0.0056809]
[1761088615295,1.3971723,109320.0,109310.0,0.0056809]
[1761088617531,1.43335458,109320.0,109310.0,0.0056809]
[1761088617730,1.45758705,109320.0,109310.0,0.0056809]
[1761088618408,0.78124121,109320.0,109310.0,0.0056809]
[1761088618610,1.45758705,109320.0,109310.0,0.0056809]
[1761088618818,1.45858705,109320.0,109310.0,0.0056809]
[1761088619176,1.45758705,109320.0,109310.0,0.0056809]
[1761088619401,1.40866696,109320.0,109310.0,0.0056809]
[1761088620155,1.40966696,109320.0,109310.0,0.0056809]
[1761088620476,1.41066696,109320.0,109310.0,0.0056809]
[1761088621746,1.45958705,109320.0,109310.0,0.0056809]
[1761088622117,1.45032208,109320.0,109310.0,1e-08]
[1761088622887,1.42693075,109320.0,109310.0,1e-08]
[1761088624148,1.41093436,109320.0,109310.0,1e-08]
[1761088624959,0.73458852,109320.0,109310.0,1e-08]
[1761088625172,1.41093436,109320.0,109310.0,1e-08]
[1761088626546,1.39658941,109320.0,109310.0,1e-08]
[1761088626744,1.08310906,109320.0,109310.0,1e-08]
[1761088626944,0.75745721,109320.0,109310.0,1e-08]
[1761088627204,0.70692678,109320.0,109310.0,1e-08]
[1761088627357,0.67400308,109320.0,109310.0,1e-08]
[1761088627559,0.67400308,109320.0,109310.0,0.18296588]
[1761088627560,0.06206201,109320.0,109310.0,0.18296588]
[1761088627766,0.5574915,109320.0,109310.0,1e-08]
[1761088627970,0.5584915,109320.0,109310.0,1e-08]
[1761088628388,0.5574915,109320.0,109310.0,1e-08]
[1761088628980,0.5584915,109320.0,109310.0,1e-08]
[1761088629185,0.98567931,109320.0,109310.0,1e-08]
[1761088629393,1.34724356,109320.0,109310.0,1e-08]
[1761088629609,1.1558047,109320.0,109310.0,1e-08]
[1761088630182,0.84232435,109320.0,109310.0,1e-08]
[1761088630653,0.81763178,109320.0,109310.0,1e-08]
[1761088632131,1.21667955,109320.0,109310.0,1e-08]
[1761088633362,1.46187955,109320.0,109310.0,1e-08]
[1761088633701,1.08752435,109320.0,109310.0,1e-08]
[1761088634111,0.41596362,109320.0,109310.0,0.18296588]
[1761088634326,0.41596362,109320.0,109310.0,1e-08]
[1761088634523,0.72944397,109320.0,109310.0,1e-08]
[1761088634724,0.75413654,109320.0,109310.0,1e-08]
[1761088637683,0.41596362,109320.0,109310.0,1e-08]
[1761088638172,0.75413654,109320.0,109310.0,0.18296588]
[1761088638354,0.02469257,109320.0,109310.0,0.18296588]
[1761088638653,0.02469257,109330.0,109320.0,0.18294914]
[1761088638870,0.20762497,109330.0,109320.0,0.18294914]
[1761088639977,0.02469257,109330.0,109320.0,0.20124405]
[1761088640193,0.24053933,109340.0,109320.0,0.20124405]
[1761088640431,0.24053933,109340.0,109330.0,0.1829324]
[1761088640649,0.58053933,109340.0,109330.0,0.1829324]
[1761088640861,0.67035834,109340.0,109330.0,0.1829324]
[1761088641726,0.06157481,109340.0,109330.0,0.20122564]
[1761088642157,0.24449048,109340.0,109330.0,0.20122564]
[1761088642367,0.24449364,109340.0,109330.0,0.20122564]
[1761088642577,0.06157797,109340.0,109330.0,0.20122564]
[1761088642787,0.0368854,109340.0,109330.0,0.1829324]
[1761088642997,0.0368854,109340.0,109330.0,0.40680465]
[1761088643207,0.0368854,109340.0,109330.0,0.38851141]
[1761088643945,0.0368854,109340.0,109330.0,0.38951141]
[1761088644374,0.55797399,109340.0,109330.0,0.001]
[1761088644590,0.61378056,109340.0,109330.0,0.002]
[1761088644775,0.63847313,109340.0,109330.0,0.11776]
[1761088644954,0.09269197,109340.0,109330.0,0.3006924]
[1761088645158,0.0368854,109340.0,109330.0,0.2996924]
[1761088645358,0.0368854,109340.0,109330.0,0.2986924]
[1761088645571,0.0368854,109340.0,109330.0,0.38851141]
[1761088645953,0.01974166,109340.0,109330.0,0.38851141]
[1761088646173,0.02469257,109350.0,109340.0,0.18291567]
[1761088646381,0.03683318,109350.0,109340.0,0.18291567]
[1761088647138,0.03683318,109350.0,109340.0,0.19801848]
[1761088647550,0.03682534,109350.0,109340.0,0.18291567]
[1761088648167,0.21972428,109350.0,109340.0,0.18291567]
[1761088649576,0.03682534,109350.0,109340.0,0.18291567]
[1761088649779,0.03682534,109350.0,109340.0,0.20120723]
[1761088652611,0.03682534,109350.0,109340.0,0.29102624]
[1761088652813,0.01971712,109350.0,109340.0,0.27273468]
[1761088653015,0.04436869,109360.0,109350.0,0.18289894]
[1761088653217,0.03690274,109360.0,109350.0,0.31387936]
[1761088653424,0.03690274,109360.0,109350.0,0.29861894]
[1761088656153,0.03690274,109360.0,109350.0,0.89492325]
[1761088656384,0.00869174,109360.0,109350.0,0.89492325]
[1761088656591,0.02469257,109380.0,109370.0,0.1828655]
[1761088656809,0.05032361,109380.0,109370.0,0.65993371]
[1761088657000,0.03677419,109380.0,109370.0,0.64164716]
[1761088657462,0.03677419,109380.0,109370.0,0.72840451]
[1761088657635,0.01968683,109380.0,109370.0,1.01782944]
[1761088657789,0.00281635,109390.0,109380.0,0.18284878]
[1761088657984,0.02249481,109390.0,109380.0,0.27266779]
[1761088658188,0.02750892,109390.0,109380.0,0.27266779]
[1761088658613,0.02249481,109390.0,109380.0,0.27266779]
[1761088663926,0.14597889,109430.0,109400.0,0.19195611]
[1761088664185,0.05751438,109460.0,109450.0,0.53273183]
[1761088664386,0.11469484,109500.0,109490.0,0.53266507]
[1761088664586,1e-08,109510.0,109500.0,0.56883067]
[1761088664768,1e-08,109520.0,109510.0,0.19263171]
[1761088664924,0.00014814,109520.0,109510.0,1.00967189]
[1761088665135,0.00014814,109520.0,109510.0,1.46284002]
[1761088665476,0.00014814,109520.0,109510.0,0.99079984]
[1761088665681,0.00014814,109520.0,109510.0,1.32329418]
[1761088665890,0.00014814,109520.0,109510.0,0.741454]
[1761088666118,0.00014814,109520.0,109510.0,0.74992847]
[1761088666468,0.00014814,109520.0,109510.0,0.64921443]
[1761088666667,0.00014814,109520.0,109510.0,1.00869461]
[1761088666925,0.00014814,109520.0,109510.0,1.0087026]
[1761088667255,0.00014814,109520.0,109510.0,1.0097026]
[1761088667456,0.00014814,109520.0,109510.0,1.3507026]
[1761088667933,0.005,109530.0,109510.0,1.44052161]
[1761088668101,0.005,109530.0,109520.0,0.80573649]
[1761088668303,0.005,109530.0,109520.0,0.83114491]
[1761088668912,1e-08,109530.0,109520.0,0.83114491]
[1761088669119,1e-08,109530.0,109520.0,0.79496263]
[1761088669311,0.0002,109550.0,109540.0,0.1825817]
[1761088669515,0.0002,109550.0,109540.0,1.20291712]
[1761088670541,0.0002,109550.0,109540.0,1.20391712]
[1761088670708,0.0002,109550.0,109540.0,0.84443694]
[1761088670916,0.0002,109550.0,109540.0,1.20391712]
[1761088671121,0.0002,109550.0,109540.0,1.20291712]
[1761088671585,0.0002,109550.0,109540.0,0.84643694]
[1761088671746,0.0002,109550.0,109540.0,0.69222246]
[1761088672096,0.0002,109550.0,109540.0,0.67540071]
[1761088672788,0.0002,109550.0,109540.0,0.27340071]
[1761088672992,0.0002,109550.0,109540.0,0.27440071]
[1761088673191,0.0002,109550.0,109540.0,0.67440071]
[1761088673398,0.0002,109550.0,109540.0,0.67340071]
[1761088673818,0.0002,109550.0,109540.0,0.67440071]
[1761088674774,0.0060953,109550.0,109540.0,0.67440071]
[1761088676373,0.0060953,109550.0,109540.0,0.27440071]
[1761088676774,0.0060953,109550.0,109540.0,0.67440071]
[1761088677777,0.0060953,109550.0,109540.0,0.27440071]
[1761088678113,0.54814051,109550.0,109540.0,0.002]
[1761088678389,0.63304577,109550.0,109540.0,0.002]
[1761088678595,0.54219411,109550.0,109540.0,0.07912059]
[1761088678815,0.54219411,109550.0,109540.0,0.1281111]
[1761088678816,0.88219411,109550.0,109540.0,0.1281111]
[1761088678952,0.88204521,109550.0,109540.0,0.07812059]
[1761088679162,0.54204521,109550.0,109540.0,0.09287317]
[1761088679346,0.54204521,109550.0,109540.0,0.06021283]
[1761088679545,0.62634094,109550.0,109540.0,0.001]
[1761088679947,0.18259837,109530.0,109520.0,0.02413904]
[1761088680258,0.65991855,109530.0,109520.0,0.01929715]
[1761088680662,0.67677483,109530.0,109520.0,0.01929715]
[1761088681066,0.31729465,109530.0,109520.0,0.02029715]
[1761088681485,0.31729465,109530.0,109520.0,0.02129715]
[1761088681656,0.72933773,109530.0,109520.0,0.02129715]
[1761088682537,1.06933773,109530.0,109520.0,0.002]
[1761088683097,1.10552001,109530.0,109520.0,0.002]
[1761088683304,0.1826484,109500.0,109490.0,0.01930618]
[1761088683629,1.01678486,109500.0,109490.0,0.01980023]
[1761088683834,1.10660387,109500.0,109490.0,0.01980023]
[1761088684036,1.12977174,109500.0,109490.0,0.01980023]
[1761088684238,1.48925192,109500.0,109490.0,0.00049405]
[1761088684466,1.12977174,109500.0,109490.0,0.00149405]
[1761088684703,1.48925192,109500.0,109490.0,0.00049405]
[1761088685166,1.5254342,109500.0,109490.0,0.00049405]
[1761088685594,1.5254342,109500.0,109490.0,0.00100001]
[1761088686021,1.53543419,109500.0,109490.0,0.00100001]
[1761088686237,1.53543419,109500.0,109490.0,1e-08]
[1761088687990,1.54543418,109500.0,109490.0,1e-08]
[1761088688446,1.55388776,109500.0,109490.0,1e-08]
[1761088689206,1.55488776,109500.0,109490.0,1e-08]
[1761088689518,1.55388776,109500.0,109490.0,1e-08]
[1761088689730,1.5780268,109500.0,109490.0,1e-08]
[1761088689932,1.57157322,109500.0,109490.0,1e-08]
[1761088690134,1.57903938,109500.0,109490.0,1e-08]
[1761088690577,1.58003938,109500.0,109490.0,1e-08]
[1761088693315,0.21886404,109480.0,109470.0,0.02729741]
[1761088693557,0.89471374,109480.0,109470.0,0.02729741]
[1761088694582,0.89571374,109480.0,109470.0,0.00315837]
[1761088695090,0.89596615,109480.0,109470.0,0.00315837]
[1761088695297,0.20974935,109480.0,109470.0,0.02729741]
[1761088695504,0.78562953,109480.0,109470.0,0.02729741]
[1761088695677,0.79995439,109480.0,109470.0,0.02729741]
[1761088696720,0.79995439,109480.0,109470.0,0.00315837]
[1761088697119,0.83613667,109480.0,109470.0,0.00315837]
[1761088697354,1.51115568,109480.0,109470.0,0.00315837]
[1761088698450,1.51115568,109480.0,109470.0,1e-08]
[1761088698599,1.53115566,109480.0,109470.0,1e-08]
[1761088699008,0.34,109440.0,109420.0,0.1827816]
[1761088699366,0.30029011,109430.0,109410.0,0.18278441]
[1761088699572,0.32586496,109430.0,109410.0,0.27260342]
[1761088699934,0.34994845,109430.0,109420.0,0.18278194]
[1761088700150,0.35044058,109430.0,109420.0,0.18378194]
[1761088700339,0.16767047,109430.0,109420.0,0.18378194]
[1761088700545,0.16767047,109430.0,109420.0,0.18278194]
[1761088700750,0.3504357,109430.0,109420.0,0.18278194]
[1761088701595,0.16767047,109430.0,109420.0,0.18278194]
[1761088701973,0.16767047,109430.0,109420.0,0.65135932]
[1761088701974,0.02606698,109430.0,109420.0,0.65135932]
[1761088702156,0.14350698,109430.0,109420.0,0.27360095]
[1761088702800,0.14350698,109430.0,109420.0,0.27460095]
[1761088703218,0.13498203,109430.0,109420.0,0.27460095]
[1761088704608,0.13494203,109430.0,109420.0,0.27460095]
[1761088704821,0.01754203,109430.0,109420.0,0.27460095]
[1761088705021,0.13494203,109430.0,109420.0,0.27633623]
[1761088705567,0.13494203,109430.0,109420.0,0.63581641]
[1761088705568,0.11789213,109430.0,109420.0,0.63581641]
[1761088707232,0.11785213,109430.0,109420.0,0.63581641]
[1761088708337,0.11785213,109430.0,109420.0,1.01199869]
[1761088708338,0.00049213,109430.0,109420.0,1.01199869]
[1761088708747,0.00049213,109430.0,109420.0,1.41199869]
[1761088709147,0.00049213,109430.0,109420.0,1.05251851]
[1761088709579,0.00049213,109430.0,109420.0,1.41199869]
[1761088710962,0.00049213,109430.0,109420.0,1.05251851]
[1761088711530,0.00049213,109430.0,109420.0,1.41199869]
[1761088712679,0.00049213,109430.0,109420.0,1.05251851]
[1761088714544,0.00049213,109430.0,109420.0,0.61633623]
[1761088715133,0.00049213,109430.0,109420.0,1.01633623]
[1761088715542,0.00049213,109430.0,109420.0,0.61633623]
[1761088715953,0.01753704,109430.0,109420.0,0.61633623]
[1761088716745,0.01753704,109430.0,109420.0,0.27633623]
[1761088717359,0.01753704,109430.0,109420.0,0.18651722]
[1761088717360,0.05782658,109430.0,109420.0,0.18651722]
[1761088717917,0.24059181,109430.0,109420.0,0.18651722]
[1761088718369,0.24059181,109430.0,109420.0,0.18551722]
[1761088719562,0.23206689,109430.0,109420.0,0.18551722]
[1761088720178,0.23206689,109430.0,109420.0,0.18651722]
[1761088720739,0.23206689,109430.0,109420.0,0.18551722]
[1761088720941,0.04930166,109430.0,109420.0,0.18551722]
[1761088721153,0.11773213,109430.0,109420.0,0.71778197]
[1761088721552,0.00049213,109430.0,109420.0,0.71778197]
[1761088721735,0.11773213,109430.0,109420.0,0.71778197]
[1761088721986,0.11773213,109430.0,109420.0,0.27633623]
[1761088724731,0.11769213,109430.0,109420.0,0.27633623]
[1761088728323,0.12625574,109430.0,109420.0,0.27633623]
[1761088728528,0.00049213,109430.0,109420.0,0.27633623]
[1761088729164,0.00049213,109430.0,109420.0,0.61633623]
[1761088729314,0.00049213,109430.0,109420.0,1.05778197]
[1761088730318,0.00049213,109430.0,109420.0,0.61633623]
[1761088730524,0.00049213,109430.0,109420.0,1.01633623]
[1761088733749,0.00049213,109430.0,109420.0,0.61633623]
[1761088734092,0.00049213,109430.0,109420.0,0.27633623]
[1761088738046,0.00049213,109430.0,109420.0,0.67633623]
[1761088739454,0.00049213,109430.0,109420.0,1.11778197]
[1761088740447,0.00049213,109430.0,109420.0,0.67633623]
[1761088742132,0.00049213,109430.0,109420.0,1.11778197]
[1761088743090,0.00049213,109430.0,109420.0,0.67633623]
[1761088744371,1e-08,109430.0,109420.0,1.49396425]
[1761088745168,1e-08,109430.0,109420.0,1.49296425]
[1761088745338,1e-08,109430.0,109420.0,1.49196425]
[1761088745548,1e-08,109430.0,109420.0,1.49396425]
[1761088745968,1e-08,109430.0,109420.0,1.05251851]
[1761088746183,1e-08,109430.0,109420.0,1.49396425]
[1761088746911,1e-08,109430.0,109420.0,1.49596425]
[1761088747110,1e-08,109430.0,109420.0,3.50596424]
[1761088750581,1e-08,109430.0,109420.0,1.05451851]
[1761088750815,1e-08,109430.0,109420.0,0.61833623]
[1761088751023,1e-08,109430.0,109420.0,0.73501623]
[1761088751294,1e-08,109430.0,109420.0,0.27833623]
[1761088751518,1e-08,109430.0,109420.0,0.00573528]
[1761088751519,0.18276524,109430.0,109420.0,0.00573528]
[1761088752131,0.18276524,109430.0,109420.0,0.00373528]
[1761088752332,1e-08,109430.0,109420.0,0.18751722]
[1761088752858,1e-08,109430.0,109420.0,0.18451722]
[1761088753068,1e-08,109430.0,109420.0,0.20279541]
[1761088753272,0.18276524,109430.0,109420.0,0.02101347]
[1761088753462,0.21931671,109430.0,109420.0,0.18451722]
[1761088753673,0.18274949,109440.0,109420.0,0.18551722]
[1761088753878,0.18274949,109440.0,109420.0,0.18393007]
[1761088754316,0.18274949,109440.0,109420.0,0.18493007]
[1761088754511,0.18274949,109440.0,109420.0,0.18293007]
[1761088754762,0.29946949,109440.0,109420.0,0.18293007]
[1761088754940,0.38260329,109440.0,109420.0,0.18393007]
[1761088755158,0.18276523,109430.0,109420.0,0.18393007]
[1761088755358,0.18276523,109430.0,109420.0,0.00114813]
[1761088756141,0.37483659,109440.0,109420.0,0.00014813]
[1761088756373,0.18276523,109430.0,109420.0,0.18292972]
[1761088756548,0.18276523,109430.0,109420.0,0.18392972]
[1761088756746,0.18276523,109430.0,109420.0,0.18292972]
[1761088756978,0.37483659,109440.0,109420.0,0.20220791]
[1761088757180,0.37483659,109440.0,109420.0,0.20320791]
[1761088757751,0.37483659,109440.0,109420.0,0.20220791]
[1761088757955,0.11664,109440.0,109430.0,0.18276523]
[1761088758146,0.29938853,109440.0,109430.0,0.20104175]
[1761088758707,0.18274853,109440.0,109430.0,0.20104175]
[1761088759110,0.18274853,109440.0,109430.0,0.20242984]
[1761088759321,0.0232841,109460.0,109440.0,0.18274853]
[1761088759557,0.0197242,109460.0,109450.0,0.18273184]
[1761088759872,0.34654376,109470.0,109460.0,0.18271514]
[1761088760043,0.01972283,109470.0,109460.0,0.18271514]
[1761088760258,0.01972283,109470.0,109460.0,0.20098665]
[1761088760259,0.11664,109470.0,109460.0,0.20098665]
[1761088760453,0.13636181,109470.0,109460.0,0.20098665]
[1761088760671,0.01972181,109470.0,109460.0,0.20098665]
[1761088760999,0.00856014,109470.0,109460.0,0.20113478]
[1761088761202,0.2109804,109470.0,109460.0,0.20113478]
[1761088761501,0.02828195,109470.0,109460.0,0.20113478]
[1761088761835,0.05161741,109470.0,109460.0,0.20113478]
[1761088762049,0.05161677,109470.0,109460.0,0.20113478]
[1761088762252,0.03189496,109470.0,109460.0,0.40755379]
[1761088762456,0.33898183,109500.0,109480.0,0.18268176]
[1761088762674,0.33898183,109500.0,109490.0,0.18266508]
[1761088762675,0.05285378,109500.0,109490.0,0.18266508]
[1761088763018,0.05285378,109500.0,109490.0,0.20093158]
[1761088763195,0.02827237,109500.0,109490.0,0.20093158]
[1761088763594,0.01971466,109500.0,109490.0,0.20093158]
[1761088763805,0.02368564,109500.0,109490.0,0.20093158]
[1761088764014,0.01971466,109500.0,109490.0,0.20093158]
[1761088764214,0.34352887,109510.0,109490.0,0.20093158]
[1761088765105,0.1826484,109500.0,109490.0,0.20093158]
[1761088765333,0.20236306,109500.0,109490.0,0.20093158]
[1761088766458,0.01971466,109500.0,109490.0,0.20093158]
[1761088766646,0.37623393,109510.0,109490.0,0.20093158]
[1761088766850,0.1826484,109500.0,109490.0,0.0182665]
[1761088767052,0.20236306,109500.0,109490.0,0.20093158]
[1761088767419,0.04308112,109500.0,109490.0,0.20093158]
[1761088768428,0.04308112,109500.0,109490.0,0.29075059]
[1761088768649,0.04308112,109500.0,109490.0,0.27248409]
[1761088769083,0.05162254,109500.0,109490.0,0.27248409]
[1761088770389,0.02825608,109500.0,109490.0,0.71392983]
[1761088770554,0.02825608,109500.0,109490.0,0.27248409]
[1761088771663,0.04359077,109500.0,109490.0,0.27248409]
[1761088772483,0.1826484,109500.0,109490.0,0.27248409]
[1761088774515,0.18263441,109510.0,109490.0,0.27248409]
[1761088774925,0.1826484,109500.0,109490.0,0.08981901]
[1761088775975,0.1826484,109500.0,109490.0,0.27248409]
[1761088776525,0.1826484,109500.0,109490.0,0.08981901]
[1761088776694,0.1826484,109500.0,109490.0,0.27248409]
[1761088780296,0.1826484,109500.0,109490.0,0.08981901]
[1761088780501,0.1826484,109500.0,109490.0,0.18266508]
[1761088780724,0.23989529,109500.0,109480.0,0.29928176]
[1761088780922,0.23626455,109500.0,109480.0,0.38910077]
[1761088781186,0.18266508,109490.0,109480.0,0.38910077]
[1761088781543,0.1826484,109500.0,109480.0,0.38910077]
[1761088781945,0.2990084,109500.0,109480.0,0.38910077]
[1761088782472,0.2990084,109500.0,109490.0,0.18266508]
[1761088782678,0.29230404,109500.0,109480.0,0.39010077]
[1761088782835,0.29230404,109500.0,109490.0,0.18266508]
[1761088783808,0.29230404,109500.0,109480.0,0.38910077]
[1761088783977,0.1826484,109500.0,109480.0,0.38910077]
[1761088784346,0.1826484,109500.0,109490.0,0.18266508]
[1761088784762,0.71766394,109510.0,109490.0,0.18266508]
[1761088785022,0.1826484,109500.0,109490.0,0.18266508]
[1761088785154,0.1826484,109500.0,109480.0,0.38910077]
[1761088785795,0.1826484,109500.0,109490.0,0.18266508]
[1761088786351,0.35885641,109510.0,109490.0,0.20093158]
[1761088786556,0.36738397,109510.0,109490.0,0.20093158]
[1761088786759,0.35885641,109510.0,109490.0,0.20093158]
[1761088787566,0.67201001,109510.0,109490.0,0.20093158]
[1761088788208,0.68054402,109510.0,109490.0,0.20093158]
[1761088788413,0.68054402,109510.0,109500.0,0.1826484]
[1761088788617,0.33140975,109510.0,109500.0,0.1826484]
[1761088788817,0.03241803,109510.0,109500.0,0.1826484]
[1761088789548,0.03241803,109510.0,109500.0,0.18279653]
[1761088789818,0.21504975,109510.0,109500.0,0.01841297]
[1761088789977,0.21504975,109510.0,109500.0,0.20106137]
[1761088790737,0.03241803,109510.0,109500.0,0.20106137]
[1761088790958,0.21504975,109510.0,109500.0,0.31730137]
[1761088791341,0.21504975,109510.0,109500.0,0.29903653]
[1761088792057,0.62759776,109510.0,109500.0,0.00014813]
[1761088792261,1.08379776,109510.0,109500.0,0.00014813]
[1761088792622,1.10348529,109510.0,109500.0,0.00014813]
[1761088793048,1.04974481,109510.0,109500.0,0.00014813]
[1761088793817,1.04975652,109510.0,109500.0,0.00014813]
[1761088794184,1.04967301,109510.0,109500.0,0.00014813]
[1761088801162,0.69086548,109510.0,109500.0,0.00014813]
[1761088801312,1.04967301,109510.0,109500.0,0.00014813]
[1761088801511,1.13949202,109510.0,109500.0,0.00014813]
[1761088802547,3.15552771,109510.0,109500.0,0.00014813]
[1761088802949,3.25188567,109510.0,109500.0,0.00014813]
[1761088803115,3.6106932,109510.0,109500.0,0.00014813]
[1761088803322,3.58611179,109510.0,109500.0,1e-08]
[1761088803790,3.6348294,109510.0,109500.0,1e-08]
[1761088803950,3.60212434,109510.0,109500.0,1e-08]
[1761088804147,3.63496843,109510.0,109500.0,1e-08]
[1761088804900,3.58625082,109510.0,109500.0,1e-08]
[1761088806267,3.58725082,109510.0,109500.0,1e-08]
[1761088806462,3.22844329,109510.0,109500.0,1e-08]
[1761088806918,3.1955992,109510.0,109500.0,1e-08]
[1761088807353,3.24485218,109510.0,109500.0,1e-08]
[1761088807791,2.66265089,109510.0,109500.0,1e-08]
[1761088808004,2.76231092,109510.0,109500.0,1e-08]
[1761088808212,0.75946602,109510.0,109500.0,1e-08]
[1761088808453,1.09946602,109510.0,109500.0,1e-08]
[1761088808659,0.28457849,109510.0,109500.0,1e-08]
[1761088808809,0.40065849,109510.0,109500.0,1e-08]
[1761088808982,1.09946602,109510.0,109500.0,1e-08]
[1761088809192,1.1780225,109510.0,109500.0,1e-08]
[1761088809595,1.1770225,109510.0,109500.0,1e-08]
[1761088810210,3.15239678,109510.0,109500.0,1e-08]
[1761088810457,3.20164976,109510.0,109500.0,1e-08]
[1761088811329,3.16881675,109510.0,109500.0,1e-08]
[1761088812865,3.07383564,109510.0,109500.0,1e-08]
[1761088813094,3.09845623,109510.0,109500.0,1e-08]
[1761088813637,2.7396487,109510.0,109500.0,1e-08]
[1761088813839,3.09845623,109510.0,109500.0,1e-08]
[1761088815959,3.12308862,109510.0,109500.0,1e-08]
[1761088816116,3.21290763,109510.0,109500.0,1e-08]
[1761088820474,3.16365465,109510.0,109500.0,1e-08]
[1761088821119,3.21290763,109510.0,109500.0,1e-08]
[1761088821765,3.16365465,109510.0,109500.0,1e-08]
[1761088822166,3.21290763,109510.0,109500.0,1e-08]
[1761088823971,3.12308862,109510.0,109500.0,1e-08]
[1761088825798,3.07383564,109510.0,109500.0,1e-08]
[1761088826537,2.71502811,109510.0,109500.0,1e-08]
[1761088826757,3.07383564,109510.0,109500.0,1e-08]
[1761088826996,0.98239947,109510.0,109500.0,1e-08]
[1761088827125,0.39967194,109510.0,109500.0,0.18264841]
[1761088827356,0.06813187,109510.0,109500.0,0.18264841]
[1761088827729,0.02824436,109510.0,109500.0,0.29073226]
[1761088827861,0.02824436,109510.0,109500.0,0.27246742]
[1761088828047,0.02824436,109510.0,109500.0,0.74735495]
[1761088828665,0.00855683,109510.0,109500.0,0.38854742]
[1761088829077,0.03711373,109520.0,109510.0,0.18263172]
[1761088829337,0.01970793,109520.0,109510.0,0.2907139]
[1761088829542,0.02464383,109530.0,109520.0,0.18261504]
[1761088829742,0.02464383,109530.0,109520.0,0.20087654]
[1761088830347,0.06258374,109530.0,109520.0,0.20087654]
[1761088830552,0.08229162,109530.0,109520.0,0.20087654]
[1761088831025,0.08229162,109530.0,109520.0,0.31695654]
[1761088831227,0.05764779,109530.0,109520.0,0.29869504]
[1761088831398,0.05764779,109530.0,109520.0,0.38851405]
[1761088832309,0.24024616,109530.0,109520.0,0.08981901]
[1761088832524,0.24024616,109530.0,109520.0,0.11604]
[1761088832723,0.24024616,109530.0,109520.0,0.29865504]
[1761088833203,0.05764779,109530.0,109520.0,0.29865504]
[1761088833821,0.05764779,109530.0,109520.0,0.38847405]
[1761088834172,0.01970788,109530.0,109520.0,0.38847405]
[1761088834374,0.08512242,109540.0,109530.0,0.18259837]
[1761088834562,0.04713422,109540.0,109530.0,0.2008582]
[1761088834760,0.08433874,109540.0,109530.0,0.2008582]
[1761088835283,0.0682328,109540.0,109530.0,0.29067721]
[1761088835641,0.0682328,109540.0,109530.0,0.27241738]
[1761088835642,0.03102828,109540.0,109530.0,0.27241738]
[1761088835848,0.03102828,109540.0,109530.0,0.7492957]
[1761088836060,0.00281083,109540.0,109530.0,0.7492957]
[1761088836289,0.00281083,109540.0,109530.0,0.30859966]
[1761088836734,0.00281083,109540.0,109530.0,0.42463966]
[1761088839325,0.00281083,109540.0,109530.0,0.82463966]
[1761088841350,0.00281083,109540.0,109530.0,1.16563966]
[1761088841770,0.00281083,109540.0,109530.0,1.6063357]
[1761088841986,0.00281083,109540.0,109530.0,1.16563966]
[1761088842190,0.00281083,109540.0,109530.0,1.16663966]
[1761088842389,0.00281083,109540.0,109530.0,1.16659966]
[1761088843949,0.00281083,109540.0,109530.0,1.01441738]
[1761088844125,0.00281083,109540.0,109530.0,1.13041738]
[1761088846960,0.00281083,109540.0,109530.0,0.002]
[1761088847191,0.64572074,109540.0,109530.0,0.118]
[1761088847397,0.76018358,109540.0,109530.0,0.002]
[1761088847618,1.10018358,109540.0,109530.0,0.118]
[1761088847794,1.05590758,109540.0,109530.0,0.118]
[1761088848158,1.05590758,109540.0,109530.0,0.117]
[1761088848675,1.05590758,109540.0,109530.0,0.116]
[1761088849935,0.52539253,109540.0,109530.0,0.116]
[1761088851115,0.00281083,109540.0,109530.0,0.3168582]
[1761088851337,0.00281083,109540.0,109530.0,0.38841738]
[1761088853783,0.18539253,109540.0,109530.0,0.38841738]
[1761088854195,0.18539253,109540.0,109530.0,0.20581901]
[1761088854412,0.00281083,109540.0,109530.0,0.38841738]
[1761088854614,0.18539253,109540.0,109530.0,0.38841738]
[1761088855027,0.00281083,109540.0,109530.0,0.38841738]
[1761088857688,0.00281083,109540.0,109530.0,0.38941738]
[1761088859056,0.00281083,109540.0,109530.0,0.18359837]
[1761088859252,0.00281083,109540.0,109530.0,0.31734327]
[1761088859410,0.00281083,109540.0,109530.0,0.39041738]
[1761088860603,0.18539253,109540.0,109530.0,0.20781901]
[1761088860825,0.00281083,109540.0,109530.0,0.39041738]
[1761088865366,0.18539253,109540.0,109530.0,0.09181901]
[1761088865579,0.18539253,109540.0,109530.0,0.002]
[1761088865783,0.62608857,109540.0,109530.0,0.118]
[1761088865999,0.645793,109540.0,109530.0,0.118]
[1761088866215,0.72862887,109540.0,109530.0,0.002]
[1761088866353,1.06862887,109540.0,109530.0,0.116]